[Event "DEN-chT XtraCon 2018-19"]
[Site "Denmark"]
[Date "2019.01.13"]
[Round "6"]
[White "Sorensen, Jan"]
[Black "Jaksland, Tim"]
[Result "1-0"]
[ECO "B47"]
[WhiteElo "2395"]
[BlackElo "2264"]
[Annotator "NA"]
[PlyCount "83"]
[EventDate "2018.10.27"]
[EventType "team-tourn"]
[EventCountry "DEN"]
[SourceTitle "playchess.com"]
[Source "ChessBase"]
[SourceQuality "1"]
[TimeControl "40/5400+30:1800+30"]

1. e4 {[%emt 0:00:00]} c5 {[%emt 0:00:00]} 2. Nf3 {[%emt 0:00:00]} e6 {[%emt 0:00:00]} 3. d4 {[%emt 0:00:00]} cxd4 {[%emt 0:00:03]} 4. Nxd4 {[%emt 0:00:01]} Nc6 {[%emt 0:00:12]} 5. Nc3 {[%emt 0:00:26]} Qc7 {[%emt 0:00:08]} 6. Qd3 {[%emt 0:02:24]} Nxd4 {[%emt 0:02:21]} 7. Qxd4 {[%emt 0:01:33]} a6 {[%emt 0:00:06]} 8. Be3 {[%emt 0:02:07]} b5 {[%emt 0:00:56]} 9. a4 {[%emt 0:04:49]} b4 {[%emt 0:07:38]} 10. Na2 {[%emt 0:00:44]} Rb8 {[%emt 0:09:34]} 11. Qa7 {[%emt 0:06:12]} Qxa7 {[%emt 0:14:09]} 12. Bxa7 {[%emt 0:00:10]} Ra8 {[%emt 0:00:05]} 13. Bd4 {[%emt 0:00:24]} Bb7 {[%emt 0:02:53]} 14. f3 {[%emt 0:01:15]} Nf6 {[%emt 0:02:52]} 15. Nc1 {[%emt 0:13:09]} Rc8 {[%emt 0:31:04]} 16. Kd2 {[%emt 0:03:30]} d5 {[%emt 0:04:00]} 17. e5 {[%emt 0:06:49]} Nd7 {[%emt 0:00:06]} 18. Nb3 {[%emt 0:00:15]} Bc5 {[%emt 0:09:08]} 19. Nxc5 {[%emt 0:06:29]} Nxc5 {[%emt 0:00:07]} 20. a5 {[%emt 0:00:23]} Ke7 {[%emt 0:02:03]} 21. h4 {[%emt 0:08:47]} Rc7 {[%emt 0:01:24]} 22. h5 {[%emt 0:01:05]} h6 {[%emt 0:00:51]} 23. Rh4 {[%emt 0:01:43]} Rhc8 {[%emt 0:02:33]} 24. Rg4 {[%emt 0:05:38]} Kf8 {[%emt 0:00:10]} 25. Be2 {[%emt 0:00:23]} Nd7 {[%emt 0:05:00]} 26. Bd3 {[%emt 0:00:33]} Nb8 {[%emt 0:00:40]} 27. f4 {[%emt 0:02:43]} Nc6 {[%emt 0:00:58]} 28. Bc5+ {[%emt 0:03:38]} Kg8 {[%emt 0:00:05]} 29. Bd6 {[%emt 0:00:20]} Rd7 {[%emt 0:00:46]} 30. f5 {[%emt 0:06:39]} Kh8 {[%emt 0:00:02]} 31. fxe6 {[%emt 0:00:35]} fxe6 {[%emt 0:00:01]} 32. Rf1 {[%emt 0:01:38]} Nxa5 {[%emt 0:00:52]} 33. b3 {[%emt 0:01:32]} Nc6 {[%emt 0:00:19]} 34. Rg6 {[%emt 0:00:35]} Nd4 {[%emt 0:01:22]} 35. Bxb4 {[%emt 0:04:44]} Kg8 {[%emt 0:02:11]} 36. Rg4 {[%emt 0:02:54]} Nc6 {[%emt 0:00:22]} 37. Bd6 {[%emt 0:00:05]} Re8 {[%emt 0:00:48]} 38. Rgf4 {[%emt 0:01:24]} Ne7 {[%emt 0:01:17]} 39. g4 {[%emt 0:06:19]} Bc8 {[%emt 0:00:10]} 40. b4 {[%emt 0:03:47]} Bb7 {[%emt 0:00:19]} 41. Rf7 {[%emt 0:33:47]} d4 {[%emt 0:08:49]} 42. Bc4 {[%emt 0:00:00]} 1-0

[Event "DEN-chT XtraCon 2018-19"]
[Site "Denmark"]
[Date "2019.01.13"]
[Round "6"]
[White "Pedersen, Nicolai Vesterbaek"]
[Black "Schmidt, Kristen"]
[Result "1-0"]
[ECO "E81"]
[WhiteElo "2392"]
[BlackElo "2230"]
[Annotator "NA"]
[PlyCount "45"]
[EventDate "2018.10.27"]
[EventType "team-tourn"]
[EventCountry "DEN"]
[SourceTitle "playchess.com"]
[Source "ChessBase"]
[SourceQuality "1"]
[TimeControl "40/5400+30:1800+30"]

1. d4 {[%emt 0:00:00]} Nf6 {[%emt 0:00:00]} 2. c4 {[%emt 0:00:32]} g6 {[%emt 0:00:07]} 3. Nc3 {[%emt 0:00:26]} Bg7 {[%emt 0:00:07]} 4. e4 {[%emt 0:01:15]} d6 {[%emt 0:00:06]} 5. f3 {[%emt 0:01:46]} O-O {[%emt 0:00:10]} 6. Nge2 {[%emt 0:01:08]} c5 {[%emt 0:01:20]} 7. d5 {[%emt 0:02:38]} e6 {[%emt 0:01:33]} 8. Ng3 {[%emt 0:00:42]} exd5 {[%emt 0:01:23]} 9. cxd5 {[%emt 0:00:23]} Nbd7 {[%emt 0:04:36]} 10. Be2 {[%emt 0:02:53]} h5 {[%emt 0:02:13]} 11. Bg5 {[%emt 0:03:40]} Qb6 {[%emt 0:03:31]} 12. Qd2 {[%emt 0:01:54]} Nh7 {[%emt 0:02:55]} 13. Bh4 {[%emt 0:02:46]} Ne5 {[%emt 0:08:37]} 14. O-O {[%emt 0:06:46]} Re8 {[%emt 0:07:05]} 15. h3 {[%emt 0:13:56]} Qb4 {[%emt 0:08:56]} 16. f4 {[%emt 0:15:11]} Nc4 {[%emt 0:04:20]} 17. Bxc4 {[%emt 0:01:38]} Qxc4 {[%emt 0:00:05]} 18. Kh1 {[%emt 0:01:40]} Bd7 {[%emt 0:03:21]} 19. f5 {[%emt 0:08:33]} Qd4 {[%emt 0:02:50]} 20. Qf4 {[%emt 0:03:26]} Qe5 {[%emt 0:00:39]} 21. fxg6 {[%emt 0:00:36]} fxg6 {[%emt 0:02:18]} 22. Qf7+ {[%emt 0:00:29]} Kh8 {[%emt 0:00:06]} 23. Qxd7 {[%emt 0:00:25]} 1-0

[Event "DEN-chT XtraCon 2018-19"]
[Site "Denmark"]
[Date "2019.01.13"]
[Round "6"]
[White "Hoi, Carsten"]
[Black "Jacobsen, Mikkel Manosri"]
[Result "1-0"]
[ECO "A04"]
[WhiteElo "2374"]
[BlackElo "2319"]
[Annotator "NA"]
[PlyCount "37"]
[EventDate "2018.10.27"]
[EventType "team-tourn"]
[EventCountry "DEN"]
[SourceTitle "playchess.com"]
[Source "ChessBase"]
[SourceQuality "1"]
[TimeControl "40/5400+30:1800+30"]

1. Nf3 {[%emt 0:00:00]} c5 {[%emt 0:00:00]} 2. c4 {[%emt 0:00:19]} Nc6 {[%emt 0:00:00]} 3. e3 {[%emt 0:00:39]} Nf6 {[%emt 0:00:16]} 4. d4 {[%emt 0:00:33]} cxd4 {[%emt 0:00:23]} 5. exd4 {[%emt 0:00:31]} d5 {[%emt 0:00:07]} 6. Nc3 {[%emt 0:00:44]} Bg4 {[%emt 0:00:06]} 7. Be3 {[%emt 0:06:06]} g6 {[%emt 0:02:47]} 8. h3 {[%emt 0:03:18]} Be6 {[%emt 0:02:33]} 9. Ng5 {[%emt 0:08:18]} Bc8 {[%emt 0:02:03]} 10. cxd5 {[%emt 0:06:29]} Nxd5 {[%emt 0:04:55]} 11. Qf3 {[%emt 0:02:22]} Nf6 {[%emt 0:01:14]} 12. Bc4 {[%emt 0:01:45]} e6 {[%emt 0:00:56]} 13. O-O-O {[%emt 0:12:59]} Be7 {[%emt 0:12:35]} 14. d5 {[%emt 0:02:36]} Ne5 {[%emt 0:05:45]} 15. Bb5+ {[%emt 0:11:00]} Nfd7 {[%emt 0:12:39]} 16. Qg3 {[%emt 0:05:43]} Bxg5 {[%emt 0:09:42]} 17. Bxg5 {[%emt 0:02:24]} Qc7 {[%emt 0:00:26]} 18. Bf4 {[%emt 0:03:20]} O-O {[%emt 0:00:52]} 19. Bxd7 {[%emt 0:00:34]} 1-0

[Event "DEN-chT XtraCon 2018-19"]
[Site "Denmark"]
[Date "2019.01.13"]
[Round "6"]
[White "Borge, Nikolaj"]
[Black "Skytte, Rasmus"]
[Result "1-0"]
[ECO "B06"]
[WhiteElo "2370"]
[BlackElo "2382"]
[Annotator "NA"]
[PlyCount "85"]
[EventDate "2018.10.27"]
[EventType "team-tourn"]
[EventCountry "DEN"]
[SourceTitle "playchess.com"]
[Source "ChessBase"]
[SourceQuality "1"]
[TimeControl "40/5400+30:1800+30"]

1. e4 {[%emt 0:00:00]} g6 {[%emt 0:01:12]} 2. Nc3 {[%emt 0:00:17]} Bg7 {[%emt 0:00:23]} 3. d4 {[%emt 0:00:05]} d6 {[%emt 0:00:14]} 4. Be3 {[%emt 0:02:34]} a6 {[%emt 0:00:38]} 5. Qd2 {[%emt 0:10:29]} b5 {[%emt 0:02:19]} 6. f3 {[%emt 0:00:59]} c6 {[%emt 0:02:47]} 7. g4 {[%emt 0:07:24]} Nd7 {[%emt 0:02:57]} 8. Nge2 {[%emt 0:12:08]} Nb6 {[%emt 0:03:54]} 9. b3 {[%emt 0:00:14]} Qc7 {[%emt 0:03:44]} 10. h4 {[%emt 0:14:12]} h6 {[%emt 0:04:06]} 11. a4 {[%emt 0:03:10]} b4 {[%emt 0:03:06]} 12. Nd1 {[%emt 0:07:01]} a5 {[%emt 0:09:10]} 13. Rc1 {[%emt 0:10:36]} Nf6 {[%emt 0:02:27]} 14. h5 {[%emt 0:04:05]} g5 {[%emt 0:05:48]} 15. Ng3 {[%emt 0:00:33]} e6 {[%emt 0:02:42]} 16. Bd3 {[%emt 0:06:55]} Nbd7 {[%emt 0:14:00]} 17. Nf2 {[%emt 0:01:49]} c5 {[%emt 0:00:48]} 18. c3 {[%emt 0:07:32]} bxc3 {[%emt 0:08:48]} 19. Qxc3 {[%emt 0:01:40]} Qb8 {[%emt 0:03:03]} 20. dxc5 {[%emt 0:04:20]} dxc5 {[%emt 0:04:03]} 21. Bxc5 {[%emt 0:01:24]} Qxg3 {[%emt 0:04:04]} 22. Ba3 {[%emt 0:00:23]} Bb7 {[%emt 0:09:20]} 23. Bb5 {[%emt 0:01:17]} Rd8 {[%emt 0:06:04]} 24. Qc7 {[%emt 0:00:52]} Qxf3 {[%emt 0:03:00]} 25. Rh3 {[%emt 0:00:55]} Qg2 {[%emt 0:01:59]} 26. Qxb7 {[%emt 0:00:52]} Bf8 {[%emt 0:00:50]} 27. Bxf8 {[%emt 0:00:49]} Kxf8 {[%emt 0:00:49]} 28. Bf1 {[%emt 0:00:41]} Qg1 {[%emt 0:00:37]} 29. Qc7 {[%emt 0:00:05]} Kg7 {[%emt 0:00:59]} 30. Rh1 {[%emt 0:00:18]} Qxh1 {[%emt 0:00:36]} 31. Nxh1 {[%emt 0:00:01]} Nxe4 {[%emt 0:00:22]} 32. Rd1 {[%emt 0:00:11]} Nef6 {[%emt 0:00:08]} 33. Bb5 {[%emt 0:00:08]} Rc8 {[%emt 0:00:04]} 34. Qxa5 {[%emt 0:00:41]} Nc5 {[%emt 0:00:51]} 35. Nf2 {[%emt 0:00:17]} Nxb3 {[%emt 0:00:15]} 36. Qb4 {[%emt 0:00:13]} Nc5 {[%emt 0:00:23]} 37. Qb2 {[%emt 0:00:09]} Rb8 {[%emt 0:00:58]} 38. Rc1 {[%emt 0:00:36]} Nxa4 {[%emt 0:00:21]} 39. Qe5 {[%emt 0:00:09]} Nb6 {[%emt 0:00:39]} 40. Ne4 {[%emt 0:00:37]} Nbd5 {[%emt 0:00:13]} 41. Rc5 {[%emt 0:30:24]} Rb6 {[%emt 0:30:41]} 42. Bc6 {[%emt 0:03:13]} Rd8 {[%emt 0:00:00]} 43. Rxd5 {[%emt 0:00:00]} 1-0

[Event "DEN-chT XtraCon 2018-19"]
[Site "Denmark"]
[Date "2019.01.13"]
[Round "6"]
[White "Jensen, Bjarke"]
[Black "Rewitz, Poul"]
[Result "1/2-1/2"]
[ECO "B33"]
[WhiteElo "2322"]
[BlackElo "2233"]
[Annotator "NA"]
[PlyCount "130"]
[EventDate "2018.10.27"]
[EventType "team-tourn"]
[EventCountry "DEN"]
[SourceTitle "playchess.com"]
[Source "ChessBase"]
[SourceQuality "1"]
[TimeControl "40/5400+30:1800+30"]

1. e4 {[%emt 0:00:00]} c5 {[%emt 0:01:53]} 2. Nf3 {[%emt 0:00:00]} Nc6 {[%emt 0:00:19]} 3. d4 {[%emt 0:00:12]} cxd4 {[%emt 0:00:08]} 4. Nxd4 {[%emt 0:00:01]} Nf6 {[%emt 0:00:15]} 5. Nc3 {[%emt 0:00:06]} e5 {[%emt 0:00:11]} 6. Ndb5 {[%emt 0:00:46]} d6 {[%emt 0:00:18]} 7. Bg5 {[%emt 0:00:31]} a6 {[%emt 0:00:22]} 8. Na3 {[%emt 0:00:02]} b5 {[%emt 0:00:08]} 9. Nd5 {[%emt 0:04:20]} Be7 {[%emt 0:00:59]} 10. Bxf6 {[%emt 0:00:06]} Bxf6 {[%emt 0:00:08]} 11. c3 {[%emt 0:00:23]} Bg5 {[%emt 0:01:20]} 12. Nc2 {[%emt 0:01:54]} Rb8 {[%emt 0:00:34]} 13. g3 {[%emt 0:13:05]} O-O {[%emt 0:06:11]} 14. Bg2 {[%emt 0:04:27]} Be6 {[%emt 0:01:09]} 15. O-O {[%emt 0:00:45]} Qd7 {[%emt 0:00:52]} 16. f4 {[%emt 0:03:19]} Bh6 {[%emt 0:29:45]} 17. Nde3 {[%emt 0:19:18]} Ne7 {[%emt 0:07:22]} 18. f5 {[%emt 0:07:16]} Bc4 {[%emt 0:01:22]} 19. Rf2 {[%emt 0:00:45]} f6 {[%emt 0:11:25]} 20. Ng4 {[%emt 0:01:09]} Kh8 {[%emt 0:01:25]} 21. Nxh6 {[%emt 0:03:19]} gxh6 {[%emt 0:00:08]} 22. Qd2 {[%emt 0:03:59]} Ng8 {[%emt 0:01:13]} 23. Qe3 {[%emt 0:04:00]} Rfd8 {[%emt 0:02:48]} 24. Rd2 {[%emt 0:05:12]} Qc7 {[%emt 0:04:11]} 25. Bf3 {[%emt 0:02:42]} Bf7 {[%emt 0:04:38]} 26. Kf2 {[%emt 0:07:30]} Kg7 {[%emt 0:01:32]} 27. Nb4 {[%emt 0:05:48]} Qb6 {[%emt 0:01:34]} 28. Bd1 {[%emt 0:10:49]} a5 {[%emt 0:04:42]} 29. Qxb6 {[%emt 0:00:25]} Rxb6 {[%emt 0:00:12]} 30. Nd3 {[%emt 0:00:15]} d5 {[%emt 0:00:54]} 31. Nc5 {[%emt 0:00:46]} Rc8 {[%emt 0:02:14]} 32. b4 {[%emt 0:00:16]} Ne7 {[%emt 0:02:28]} 33. Bf3 {[%emt 0:00:54]} axb4 {[%emt 0:06:07]} 34. cxb4 {[%emt 0:00:11]} d4 {[%emt 0:00:28]} 35. Be2 {[%emt 0:01:14]} Ra8 {[%emt 0:00:38]} 36. Rc1 {[%emt 0:00:56]} Rxa2 {[%emt 0:03:21]} 37. Rxa2 {[%emt 0:00:16]} Bxa2 {[%emt 0:00:06]} 38. Ra1 {[%emt 0:00:04]} Bf7 {[%emt 0:00:24]} 39. Ra7 {[%emt 0:00:13]} Nc6 {[%emt 0:00:51]} 40. Rc7 {[%emt 0:01:33]} Nd8 {[%emt 0:03:10]} 41. Ne6+ {[%emt 0:07:21]} Rxe6 {[%emt 0:04:59]} 42. fxe6 {[%emt 0:00:57]} Nxe6 {[%emt 0:00:06]} 43. Rb7 {[%emt 0:00:48]} Ng5 {[%emt 0:00:35]} 44. Bd3 {[%emt 0:00:34]} f5 {[%emt 0:01:27]} 45. exf5 {[%emt 0:01:02]} e4 {[%emt 0:00:35]} 46. Bxb5 {[%emt 0:02:06]} Kf6 {[%emt 0:01:37]} 47. h4 {[%emt 0:03:07]} e3+ {[%emt 0:03:48]} 48. Kf1 {[%emt 0:01:20]} Ne4 {[%emt 0:01:37]} 49. g4 {[%emt 0:03:05]} Nd6 {[%emt 0:05:42]} 50. Rb6 {[%emt 0:01:49]} Ke5 {[%emt 0:00:17]} 51. Bd3 {[%emt 0:01:29]} Ne4 {[%emt 0:07:46]} 52. Rxh6 {[%emt 0:08:10]} Bd5 {[%emt 0:03:54]} 53. Rxh7 {[%emt 0:02:33]} Nf2 {[%emt 0:00:13]} 54. Be2 {[%emt 0:02:44]} d3 {[%emt 0:00:26]} 55. Re7+ {[%emt 0:00:32]} Kf4 {[%emt 0:00:43]} 56. Bxd3 {[%emt 0:00:35]} Nxd3 {[%emt 0:00:07]} 57. f6 {[%emt 0:00:54]} Bc4 {[%emt 0:00:55]} 58. g5 {[%emt 0:00:29]} Ne5+ {[%emt 0:02:39]} 59. Ke1 {[%emt 0:00:30]} Nf3+ {[%emt 0:00:34]} 60. Kd1 {[%emt 0:00:02]} Bb3+ {[%emt 0:00:15]} 61. Kc1 {[%emt 0:00:05]} Ne5 {[%emt 0:00:21]} 62. b5 {[%emt 0:01:11]} Nd3+ {[%emt 0:00:49]} 63. Kb1 {[%emt 0:00:02]} Ne5 {[%emt 0:00:11]} 64. Kc1 {[%emt 0:00:37]} Nd3+ {[%emt 0:00:05]} 65. Kb1 {[%emt 0:00:04]} Ne5 {[%emt 0:00:07]} 1/2-1/2

[Event "DEN-chT XtraCon 2018-19"]
[Site "Denmark"]
[Date "2019.01.13"]
[Round "6"]
[White "Sahl, Bjarke"]
[Black "Aabling-Thomsen, Jakob"]
[Result "1-0"]
[ECO "A85"]
[WhiteElo "2317"]
[BlackElo "2374"]
[Annotator "NA"]
[PlyCount "49"]
[EventDate "2018.10.27"]
[EventType "team-tourn"]
[EventCountry "DEN"]
[SourceTitle "playchess.com"]
[Source "ChessBase"]
[SourceQuality "1"]
[TimeControl "40/5400+30:1800+30"]

1. d4 {[%emt 0:12:23]} f5 {[%emt 0:02:01]} 2. c4 {[%emt 0:00:30]} Nf6 {[%emt 0:00:30]} 3. Nc3 {[%emt 0:01:45]} g6 {[%emt 0:01:25]} 4. h4 {[%emt 0:04:50]} d6 {[%emt 0:04:14]} 5. Nh3 {[%emt 0:11:16]} Nc6 {[%emt 0:02:15]} 6. Bg5 {[%emt 0:01:12]} Bg7 {[%emt 0:28:07]} 7. Nf4 Ng4 8. e3 {[%emt 0:09:42]} O-O {[%emt 0:08:21]} 9. c5 {[%emt 0:16:03]} Qe8 {[%emt 0:07:28]} 10. Qb3+ {[%emt 0:12:09]} Kh8 {[%emt 0:01:29]} 11. h5 {[%emt 0:02:38]} gxh5 {[%emt 0:02:17]} 12. Ncd5 {[%emt 0:03:24]} dxc5 {[%emt 0:07:31]} 13. Nxc7 Nxd4 {[%emt 0:12:26]} 14. exd4 {[%emt 0:02:28]} Qc6 {[%emt 0:00:05]} 15. Rxh5 {[%emt 0:08:15]} Bxd4 {[%emt 0:00:20]} 16. Bb5 {[%emt 0:00:50]} Qxc7 {[%emt 0:05:10]} 17. Ng6+ {[%emt 0:00:28]} Kg7 {[%emt 0:00:02]} 18. Nxf8 Qe5+ {[%emt 0:09:31]} 19. Kf1 {[%emt 0:01:23]} Kxf8 {[%emt 0:00:43]} 20. Rxh7 {[%emt 0:00:49]} Be6 {[%emt 0:00:41]} 21. Qh3 {[%emt 0:06:10]} f4 {[%emt 0:02:34]} 22. Qh5 {[%emt 0:00:56]} Qf5 {[%emt 0:01:51]} 23. Re1 {[%emt 0:00:55]} Kg8 {[%emt 0:01:51]} 24. Rxe6 {[%emt 0:01:20]} Qxe6 {[%emt 0:00:33]} 25. Rxe7 {[%emt 0:00:15]} 1-0

[Event "DEN-chT XtraCon 2018-19"]
[Site "Denmark"]
[Date "2019.01.13"]
[Round "6"]
[White "Hove, Esben Kjems"]
[Black "Olsen, Filip Boe"]
[Result "1/2-1/2"]
[ECO "D02"]
[WhiteElo "2314"]
[BlackElo "2359"]
[Annotator "NA"]
[PlyCount "88"]
[EventDate "2018.10.27"]
[EventType "team-tourn"]
[EventCountry "DEN"]
[SourceTitle "playchess.com"]
[Source "ChessBase"]
[SourceQuality "1"]
[TimeControl "40/5400+30:1800+30"]

1. d4 {[%emt 0:00:02]} d5 {[%emt 0:00:00]} 2. Nf3 {[%emt 0:00:14]} Nf6 {[%emt 0:00:00]} 3. g3 {[%emt 0:00:33]} g6 {[%emt 0:04:44]} 4. Bg2 {[%emt 0:00:17]} Bg7 {[%emt 0:00:06]} 5. O-O {[%emt 0:00:06]} O-O {[%emt 0:00:16]} 6. Bf4 {[%emt 0:03:19]} c5 {[%emt 0:02:53]} 7. dxc5 {[%emt 0:02:52]} Na6 {[%emt 0:01:27]} 8. c3 {[%emt 0:05:07]} Nxc5 {[%emt 0:01:27]} 9. Nbd2 {[%emt 0:00:53]} b6 {[%emt 0:19:59]} 10. Nb3 {[%emt 0:05:11]} Nce4 {[%emt 0:05:15]} 11. Ng5 {[%emt 0:08:45]} Bb7 {[%emt 0:07:43]} 12. Nxe4 {[%emt 0:09:46]} Nxe4 {[%emt 0:00:37]} 13. a4 {[%emt 0:00:34]} e5 {[%emt 0:07:21]} 14. Be3 {[%emt 0:00:29]} Qc7 {[%emt 0:03:39]} 15. a5 {[%emt 0:01:02]} Rfd8 {[%emt 0:03:48]} 16. axb6 {[%emt 0:12:04]} axb6 {[%emt 0:00:02]} 17. Qd3 {[%emt 0:00:56]} Nc5 {[%emt 0:02:29]} 18. Qc2 {[%emt 0:12:31]} Ne6 {[%emt 0:03:44]} 19. Rxa8 {[%emt 0:01:56]} Rxa8 {[%emt 0:01:32]} 20. Ra1 {[%emt 0:02:52]} Rxa1+ {[%emt 0:03:14]} 21. Nxa1 {[%emt 0:00:07]} b5 {[%emt 0:06:37]} 22. Qb3 {[%emt 0:09:47]} d4 {[%emt 0:01:18]} 23. cxd4 {[%emt 0:02:28]} exd4 {[%emt 0:01:41]} 24. Bd2 {[%emt 0:00:11]} Bxg2 {[%emt 0:00:17]} 25. Kxg2 {[%emt 0:00:05]} Qc4 {[%emt 0:01:40]} 26. Qf3 {[%emt 0:01:02]} h5 {[%emt 0:01:54]} 27. Nb3 {[%emt 0:03:02]} Qc2 {[%emt 0:02:16]} 28. Bc1 {[%emt 0:00:42]} Bf8 {[%emt 0:04:07]} 29. Qd3 {[%emt 0:03:53]} Qc6+ {[%emt 0:00:22]} 30. f3 {[%emt 0:00:31]} Bg7 {[%emt 0:02:31]} 31. Bd2 {[%emt 0:00:58]} Qc4 {[%emt 0:01:00]} 32. Kf2 {[%emt 0:00:54]} Bf6 {[%emt 0:02:07]} 33. Na5 {[%emt 0:03:56]} Qd5 {[%emt 0:00:38]} 34. Nb3 {[%emt 0:02:13]} h4 {[%emt 0:00:28]} 35. Kg2 {[%emt 0:00:39]} hxg3 {[%emt 0:01:00]} 36. hxg3 {[%emt 0:00:10]} Qc4 {[%emt 0:03:15]} 37. Kf2 {[%emt 0:01:04]} Qa4 {[%emt 0:01:29]} 38. f4 {[%emt 0:03:11]} Qc4 {[%emt 0:01:05]} 39. Ke1 {[%emt 0:02:36]} Qc6 {[%emt 0:00:47]} 40. Kd1 {[%emt 0:00:12]} Qh1+ {[%emt 0:02:40]} 41. Kc2 {[%emt 0:31:51]} Qc6+ {[%emt 0:31:48]} 42. Kd1 {[%emt 0:00:53]} Qh1+ {[%emt 0:00:00]} 43. Kc2 {[%emt 0:00:00]} Qc6+ {[%emt 0:00:00]} 44. Kd1 {[%emt 0:00:00]} Qh1+ {[%emt 0:00:00]} 1/2-1/2

[Event "DEN-chT XtraCon 2018-19"]
[Site "Denmark"]
[Date "2019.01.13"]
[Round "6"]
[White "Boe, Mads"]
[Black "Jakobsen, Peter"]
[Result "1-0"]
[ECO "A45"]
[WhiteElo "2302"]
[BlackElo "2181"]
[Annotator "NA"]
[PlyCount "113"]
[EventDate "2018.10.27"]
[EventType "team-tourn"]
[EventCountry "DEN"]
[SourceTitle "playchess.com"]
[Source "ChessBase"]
[SourceQuality "1"]
[TimeControl "40/5400+30:1800+30"]

1. d4 {[%emt 0:00:00]} Nf6 {[%emt 0:00:00]} 2. Bg5 {[%emt 0:01:12]} Ne4 {[%emt 0:00:00]} 3. Bf4 {[%emt 0:00:06]} c5 {[%emt 0:00:00]} 4. f3 {[%emt 0:00:45]} Qa5+ {[%emt 0:00:00]} 5. c3 {[%emt 0:00:08]} Nf6 {[%emt 0:00:06]} 6. Nd2 {[%emt 0:02:35]} cxd4 {[%emt 0:00:10]} 7. Nb3 {[%emt 0:00:23]} Qb6 {[%emt 0:00:16]} 8. Qxd4 {[%emt 0:00:35]} Qxd4 {[%emt 0:08:20]} 9. cxd4 {[%emt 0:04:19]} d5 {[%emt 0:00:27]} 10. e3 {[%emt 0:07:18]} e6 {[%emt 0:00:30]} 11. Rc1 {[%emt 0:07:14]} Nc6 {[%emt 0:01:14]} 12. g4 {[%emt 0:00:20]} Bd7 {[%emt 0:08:43]} 13. Ne2 {[%emt 0:24:37]} Be7 {[%emt 0:03:06]} 14. Nc5 {[%emt 0:09:08]} Bxc5 {[%emt 0:02:12]} 15. Rxc5 {[%emt 0:00:09]} Ke7 {[%emt 0:04:04]} 16. Rc1 {[%emt 0:07:29]} Rac8 {[%emt 0:02:53]} 17. Nc3 {[%emt 0:00:08]} a6 {[%emt 0:08:44]} 18. Kd2 {[%emt 0:03:13]} Na7 {[%emt 0:13:34]} 19. Bd3 {[%emt 0:01:30]} Bc6 {[%emt 0:02:20]} 20. b3 {[%emt 0:07:31]} h5 {[%emt 0:09:47]} 21. h3 {[%emt 0:02:03]} Nd7 {[%emt 0:03:35]} 22. Rcg1 {[%emt 0:02:52]} Rcg8 {[%emt 0:06:50]} 23. g5 {[%emt 0:03:41]} g6 {[%emt 0:01:56]} 24. Rc1 {[%emt 0:00:32]} Rc8 {[%emt 0:01:38]} 25. Rhe1 {[%emt 0:02:49]} Rhd8 {[%emt 0:02:48]} 26. Rc2 {[%emt 0:03:42]} b5 {[%emt 0:09:02]} 27. Rec1 {[%emt 0:00:32]} Bb7 {[%emt 0:00:12]} 28. a4 {[%emt 0:01:33]} b4 {[%emt 0:00:26]} 29. Na2 {[%emt 0:00:19]} Nc6 {[%emt 0:00:20]} 30. Bxa6 {[%emt 0:03:17]} Nxd4 {[%emt 0:04:19]} 31. exd4 {[%emt 0:00:33]} Bxa6 {[%emt 0:00:26]} 32. Nxb4 {[%emt 0:00:33]} Bb7 {[%emt 0:00:38]} 33. Rc7 {[%emt 0:01:44]} Rxc7 {[%emt 0:01:22]} 34. Rxc7 {[%emt 0:00:08]} Ba8 {[%emt 0:00:05]} 35. Nd3 {[%emt 0:00:36]} Ke8 {[%emt 0:00:16]} 36. a5 {[%emt 0:01:33]} Nb8 {[%emt 0:00:26]} 37. Nb4 {[%emt 0:00:40]} Nd7 {[%emt 0:01:51]} 38. Kc3 {[%emt 0:01:08]} e5 {[%emt 0:00:47]} 39. Be3 {[%emt 0:01:24]} Nf8 {[%emt 0:01:24]} 40. Ra7 {[%emt 0:00:53]} Ne6 {[%emt 0:00:58]} 41. Kd3 {[%emt 0:30:27]} exd4 {[%emt 0:33:33]} 42. Bxd4 {[%emt 0:00:00]} Nf4+ {[%emt 0:00:00]} 43. Ke3 {[%emt 0:00:00]} Ng2+ {[%emt 0:00:00]} 44. Kd2 {[%emt 0:00:00]} Nh4 {[%emt 0:00:00]} 45. f4 {[%emt 0:00:00]} Nf5 {[%emt 0:00:00]} 46. Kd3 {[%emt 0:00:00]} Rb8 {[%emt 0:00:00]} 47. Be5 {[%emt 0:00:00]} Rc8 {[%emt 0:00:00]} 48. Bd4 {[%emt 0:00:00]} Rb8 {[%emt 0:00:00]} 49. Bb6 {[%emt 0:00:00]} Kf8 {[%emt 0:00:00]} 50. Bc5+ {[%emt 0:00:15]} Kg8 {[%emt 0:00:00]} 51. Na6 {[%emt 0:01:38]} Rc8 {[%emt 0:00:00]} 52. Rc7 {[%emt 0:00:09]} Re8 {[%emt 0:00:00]} 53. Bd4 {[%emt 0:00:45]} Nd6 {[%emt 0:00:00]} 54. Rd7 {[%emt 0:01:05]} Nb5 {[%emt 0:00:00]} 55. Nc7 {[%emt 0:00:16]} Nxc7 {[%emt 0:00:00]} 56. Rxc7 {[%emt 0:00:05]} Rb8 {[%emt 0:00:00]} 57. b4 {[%emt 0:00:08]} 1-0